[Event "World Senior chT-65 2019"]
[Site "Rhodes"]
[Date "2019.04.21"]
[Round "6.39"]
[White "Valentine, Brian J"]
[Black "Alkkiomaki, Jyrki"]
[Result "1-0"]
[ECO "C92"]
[WhiteElo "1954"]
[BlackElo "1908"]
[Annotator "NA"]
[PlyCount "97"]
[EventDate "2019.04.16"]
[EventType "team-tourn"]
[EventCountry "GRE"]
[SourceTitle "playchess.com"]
[Source "ChessBase"]
[SourceQuality "1"]
[WhiteTeam "England"]
[BlackTeam "Finland"]
[WhiteTeamCountry "ENG"]
[BlackTeamCountry "FIN"]
[TimeControl "40/5400+30:1800+30"]

1. e4 {[%emt 0:00:00]} e5 {[%emt 0:00:00]} 2. Nf3 {[%emt 0:00:00]} Nc6 {[%emt 0:00:00]} 3. Bb5 {[%emt 0:00:00]} a6 {[%emt 0:00:00]} 4. Ba4 {[%emt 0:00:00]} Nf6 {[%emt 0:00:00]} 5. d3 {[%emt 0:00:15]} d6 {[%emt 0:00:33]} 6. c3 {[%emt 0:00:06]} Be7 {[%emt 0:00:17]} 7. O-O {[%emt 0:00:55]} O-O {[%emt 0:00:40]} 8. Re1 {[%emt 0:00:48]} b5 {[%emt 0:04:15]} 9. Bc2 {[%emt 0:00:16]} Re8 {[%emt 0:01:30]} 10. h3 {[%emt 0:06:05]} h6 {[%emt 0:03:10]} 11. Nbd2 {[%emt 0:00:10]} Bf8 {[%emt 0:00:33]} 12. Nf1 {[%emt 0:00:57]} Be6 {[%emt 0:05:41]} 13. d4 {[%emt 0:08:57]} Bd7 {[%emt 0:01:31]} 14. Ng3 {[%emt 0:01:29]} g6 {[%emt 0:05:01]} 15. Be3 {[%emt 0:04:27]} Bg7 {[%emt 0:02:54]} 16. Qd2 {[%emt 0:10:38]} Kh7 {[%emt 0:00:40]} 17. b4 {[%emt 0:01:28]} Qe7 {[%emt 0:18:57]} 18. a3 {[%emt 0:05:32]} Rad8 {[%emt 0:02:30]} 19. Rac1 {[%emt 0:08:31]} Ng8 {[%emt 0:05:31]} 20. d5 {[%emt 0:08:30]} Nb8 {[%emt 0:00:07]} 21. Qd3 {[%emt 0:01:48]} c6 {[%emt 0:06:27]} 22. Bb3 {[%emt 0:01:57]} f5 {[%emt 0:02:05]} 23. Bb6 {[%emt 0:13:31]} Rc8 {[%emt 0:03:37]} 24. exf5 {[%emt 0:00:11]} gxf5 {[%emt 0:00:43]} 25. Nxf5 {[%emt 0:00:16]} Bxf5 {[%emt 0:00:14]} 26. Qxf5+ {[%emt 0:00:02]} Kh8 {[%emt 0:00:08]} 27. c4 {[%emt 0:08:14]} Qb7 {[%emt 0:00:47]} 28. Be3 {[%emt 0:00:13]} bxc4 {[%emt 0:00:09]} 29. dxc6 {[%emt 0:01:11]} Nxc6 {[%emt 0:01:46]} 30. Rxc4 {[%emt 0:04:42]} d5 {[%emt 0:02:56]} 31. Rh4 {[%emt 0:00:53]} Nce7 {[%emt 0:01:05]} 32. Qb1 {[%emt 0:02:59]} e4 {[%emt 0:00:35]} 33. Nd4 {[%emt 0:00:30]} Ng6 {[%emt 0:00:41]} 34. Rg4 {[%emt 0:00:20]} Ne5 {[%emt 0:00:52]} 35. Rg3 {[%emt 0:00:21]} Nd3 {[%emt 0:00:43]} 36. Rf1 {[%emt 0:02:18]} Qf7 {[%emt 0:01:55]} 37. Ne2 {[%emt 0:04:15]} Be5 {[%emt 0:03:42]} 38. Bd4 {[%emt 0:00:02]} Qf6 {[%emt 0:00:59]} 39. Bxe5 {[%emt 0:00:59]} Qxe5 {[%emt 0:02:54]} 40. Rg6 {[%emt 0:00:00]} Qh5 {[%emt 0:00:00]} 41. Rg4 {[%emt 0:06:24]} Ne5 {[%emt 0:12:13]} 42. Qb2 {[%emt 0:02:07]} Kh7 {[%emt 0:01:18]} 43. Rg3 {[%emt 0:01:05]} Qf7 {[%emt 0:01:44]} 44. Qd4 {[%emt 0:05:42]} Nc4 {[%emt 0:01:54]} 45. Nc3 {[%emt 0:01:59]} Qf6 {[%emt 0:05:25]} 46. Qxd5 {[%emt 0:04:52]} Nb6 {[%emt 0:00:32]} 47. Qf7+ {[%emt 0:01:27]} Qxf7 {[%emt 0:00:52]} 48. Bxf7 {[%emt 0:00:06]} Re5 {[%emt 0:00:40]} 49. Nxe4 {[%emt 0:01:03]} 1-0

[Event "World Senior chT-65 2019"]
[Site "Rhodes"]
[Date "2019.04.21"]
[Round "6.40"]
[White "Kauko, Pekka"]
[Black "Thynne, Trefor F"]
[Result "1-0"]
[ECO "B10"]
[WhiteElo "1902"]
[BlackElo "1907"]
[Annotator "NA"]
[PlyCount "55"]
[EventDate "2019.04.16"]
[EventType "team-tourn"]
[EventCountry "GRE"]
[SourceTitle "playchess.com"]
[Source "ChessBase"]
[SourceQuality "1"]
[WhiteTeam "Finland"]
[BlackTeam "England"]
[WhiteTeamCountry "FIN"]
[BlackTeamCountry "ENG"]
[TimeControl "40/5400+30:1800+30"]

1. c4 {[%emt 0:00:00]} c6 {[%emt 0:00:00]} 2. e4 {[%emt 0:00:00]} d5 {[%emt 0:00:00]} 3. e5 {[%emt 0:00:01]} d4 {[%emt 0:04:00]} 4. Bd3 {[%emt 0:01:17]} c5 {[%emt 0:02:37]} 5. h3 {[%emt 0:00:45]} Nc6 {[%emt 0:03:16]} 6. Nf3 {[%emt 0:00:29]} e6 {[%emt 0:05:43]} 7. O-O {[%emt 0:01:21]} Nge7 {[%emt 0:00:41]} 8. Re1 {[%emt 0:00:41]} h6 {[%emt 0:05:12]} 9. Be4 {[%emt 0:01:01]} g5 {[%emt 0:06:06]} 10. d3 {[%emt 0:00:31]} Bg7 {[%emt 0:00:17]} 11. a3 {[%emt 0:00:36]} Qc7 {[%emt 0:00:46]} 12. Qe2 {[%emt 0:02:34]} Nxe5 {[%emt 0:13:12]} 13. Nxe5 {[%emt 0:01:49]} Bxe5 {[%emt 0:04:13]} 14. b4 {[%emt 0:03:14]} Bd6 {[%emt 0:10:48]} 15. Qh5 {[%emt 0:02:20]} Bf4 {[%emt 0:10:43]} 16. Nd2 {[%emt 0:01:03]} Bd7 {[%emt 0:06:12]} 17. Nb3 {[%emt 0:01:06]} Bxc1 {[%emt 0:01:47]} 18. Raxc1 {[%emt 0:00:24]} cxb4 {[%emt 0:00:33]} 19. axb4 {[%emt 0:00:20]} e5 {[%emt 0:03:05]} 20. Nc5 {[%emt 0:03:33]} Nc6 {[%emt 0:07:05]} 21. Nxb7 {[%emt 0:08:21]} Rb8 {[%emt 0:03:53]} 22. Nc5 {[%emt 0:02:09]} Nxb4 {[%emt 0:01:59]} 23. Nxd7 {[%emt 0:00:58]} Qxd7 {[%emt 0:00:23]} 24. c5 {[%emt 0:00:50]} Nd5 {[%emt 0:03:20]} 25. Qf3 {[%emt 0:01:47]} Ne7 {[%emt 0:01:30]} 26. Qf6 {[%emt 0:00:56]} Rg8 {[%emt 0:01:46]} 27. Qxe5 {[%emt 0:00:20]} Rc8 {[%emt 0:00:35]} 28. Bf5 {[%emt 0:00:21]} 1-0

[Event "World Senior chT-65 2019"]
[Site "Rhodes"]
[Date "2019.04.21"]
[Round "6.41"]
[White "Jones, Iolo C"]
[Black "Maki, Christer"]
[Result "1-0"]
[ECO "B06"]
[WhiteElo "2187"]
[BlackElo "1885"]
[Annotator "NA"]
[PlyCount "86"]
[EventDate "2019.04.16"]
[EventType "team-tourn"]
[EventCountry "GRE"]
[SourceTitle "playchess.com"]
[Source "ChessBase"]
[SourceQuality "1"]
[WhiteTeam "Wales"]
[BlackTeam "Sweden"]
[WhiteTeamCountry "WLS"]
[BlackTeamCountry "SWE"]
[TimeControl "40/5400+30:1800+30"]

1. d4 {[%emt 0:00:00]} g6 {[%emt 0:00:00]} 2. e4 {[%emt 0:00:13]} Bg7 {[%emt 0:00:00]} 3. Nf3 {[%emt 0:01:15]} d6 {[%emt 0:00:24]} 4. Nc3 {[%emt 0:01:05]} Bg4 {[%emt 0:02:43]} 5. Be3 {[%emt 0:02:22]} Nd7 {[%emt 0:09:47]} 6. Be2 {[%emt 0:02:46]} c6 {[%emt 0:01:22]} 7. O-O {[%emt 0:01:22]} Bxf3 {[%emt 0:06:48]} 8. Bxf3 {[%emt 0:01:54]} e5 {[%emt 0:03:55]} 9. dxe5 {[%emt 0:01:38]} dxe5 {[%emt 0:02:26]} 10. Qe2 {[%emt 0:02:58]} Ngf6 {[%emt 0:06:40]} 11. Qc4 {[%emt 0:02:18]} O-O {[%emt 0:09:52]} 12. Rfd1 {[%emt 0:02:10]} Qe7 {[%emt 0:02:53]} 13. a4 {[%emt 0:01:31]} Rfd8 {[%emt 0:03:23]} 14. a5 {[%emt 0:01:54]} a6 {[%emt 0:02:41]} 15. Na4 {[%emt 0:03:23]} Nf8 {[%emt 0:03:35]} 16. Nc5 {[%emt 0:07:02]} Ne6 {[%emt 0:04:02]} 17. Nxe6 {[%emt 0:01:59]} Qxe6 {[%emt 0:00:52]} 18. Qxe6 {[%emt 0:00:49]} fxe6 {[%emt 0:00:02]} 19. Bb6 {[%emt 0:03:16]} Rxd1+ {[%emt 0:02:14]} 20. Rxd1 {[%emt 0:00:10]} Kf7 {[%emt 0:00:32]} 21. Be2 {[%emt 0:00:37]} Re8 {[%emt 0:06:46]} 22. f3 {[%emt 0:01:38]} Re7 {[%emt 0:02:05]} 23. Bd3 {[%emt 0:08:05]} Rd7 {[%emt 0:01:33]} 24. Kf2 {[%emt 0:01:06]} Bf8 {[%emt 0:01:09]} 25. Ke2 {[%emt 0:06:20]} Be7 {[%emt 0:00:47]} 26. Bf2 {[%emt 0:05:00]} Bb4 {[%emt 0:04:45]} 27. Ra1 {[%emt 0:01:15]} Ne8 {[%emt 0:02:04]} 28. g4 {[%emt 0:03:34]} g5 {[%emt 0:01:07]} 29. Bg3 {[%emt 0:01:51]} Kf6 {[%emt 0:01:25]} 30. h4 {[%emt 0:01:06]} gxh4 {[%emt 0:03:20]} 31. Bxh4+ {[%emt 0:00:23]} Kg6 {[%emt 0:02:46]} 32. Bg3 {[%emt 0:02:26]} Bd6 {[%emt 0:03:56]} 33. Bc4 {[%emt 0:01:04]} Kf7 {[%emt 0:05:00]} 34. Rh1 {[%emt 0:01:32]} Kg7 {[%emt 0:01:39]} 35. Bxe6 {[%emt 0:01:46]} Re7 {[%emt 0:00:31]} 36. Bf5 {[%emt 0:01:35]} Kg8 {[%emt 0:00:35]} 37. Rh6 {[%emt 0:03:24]} Bc7 {[%emt 0:00:44]} 38. Bh4 {[%emt 0:02:16]} Rg7 {[%emt 0:00:50]} 39. Be1 {[%emt 0:02:32]} Bd6 {[%emt 0:00:00]} 40. Bc3 {[%emt 0:00:00]} Re7 {[%emt 0:00:00]} 41. Re6 {[%emt 0:02:55]} Kf7 {[%emt 0:06:35]} 42. Rxe7+ {[%emt 0:00:37]} Bxe7 {[%emt 0:00:02]} 43. Bxe5 {[%emt 0:01:28]} Bf8 {[%emt 0:01:06]} 1-0

[Event "World Senior chT-65 2019"]
[Site "Rhodes"]
[Date "2019.04.21"]
[Round "6.42"]
[White "Wihlborn, Bengt"]
[Black "Thornton, John D"]
[Result "1/2-1/2"]
[ECO "D32"]
[WhiteElo "1820"]
[BlackElo "2061"]
[Annotator "NA"]
[PlyCount "42"]
[EventDate "2019.04.16"]
[EventType "team-tourn"]
[EventCountry "GRE"]
[SourceTitle "playchess.com"]
[Source "ChessBase"]
[SourceQuality "1"]
[WhiteTeam "Sweden"]
[BlackTeam "Wales"]
[WhiteTeamCountry "SWE"]
[BlackTeamCountry "WLS"]
[TimeControl "40/5400+30:1800+30"]

1. Nf3 {[%emt 0:00:00]} d5 {[%emt 0:00:00]} 2. c4 {[%emt 0:00:00]} e6 {[%emt 0:00:13]} 3. e3 {[%emt 0:00:26]} c5 {[%emt 0:00:38]} 4. cxd5 {[%emt 0:00:51]} exd5 {[%emt 0:00:07]} 5. d4 {[%emt 0:00:17]} Nf6 {[%emt 0:00:26]} 6. Be2 {[%emt 0:01:06]} Nc6 {[%emt 0:00:33]} 7. O-O {[%emt 0:00:24]} Be7 {[%emt 0:02:03]} 8. b3 {[%emt 0:01:34]} O-O {[%emt 0:01:25]} 9. Bb2 {[%emt 0:03:09]} Re8 {[%emt 0:04:39]} 10. Nc3 {[%emt 0:03:59]} Bg4 {[%emt 0:10:22]} 11. dxc5 {[%emt 0:02:12]} Bxc5 {[%emt 0:01:20]} 12. Rc1 {[%emt 0:01:08]} Bf8 {[%emt 0:09:14]} 13. Nb5 {[%emt 0:02:59]} Ne4 {[%emt 0:04:52]} 14. Nbd4 {[%emt 0:01:16]} Rc8 {[%emt 0:03:48]} 15. Rc2 {[%emt 0:05:39]} Nb4 {[%emt 0:09:36]} 16. Rxc8 {[%emt 0:01:02]} Bxc8 {[%emt 0:00:50]} 17. a3 {[%emt 0:04:54]} Nc6 {[%emt 0:00:20]} 18. b4 {[%emt 0:00:43]} a5 {[%emt 0:13:28]} 19. b5 {[%emt 0:01:36]} Nxd4 {[%emt 0:00:37]} 20. Qxd4 {[%emt 0:01:20]} Be6 {[%emt 0:03:58]} 21. Rd1 {[%emt 0:07:19]} Nd6 {[%emt 0:00:37]} 1/2-1/2

[Event "World Senior chT-65 2019"]
[Site "Rhodes"]
[Date "2019.04.21"]
[Round "6.43"]
[White "Bevan, Peter M"]
[Black "Palsson, Bertil"]
[Result "1/2-1/2"]
[ECO "A34"]
[WhiteElo "1920"]
[BlackElo "1785"]
[Annotator "NA"]
[PlyCount "62"]
[EventDate "2019.04.16"]
[EventType "team-tourn"]
[EventCountry "GRE"]
[SourceTitle "playchess.com"]
[Source "ChessBase"]
[SourceQuality "1"]
[WhiteTeam "Wales"]
[BlackTeam "Sweden"]
[WhiteTeamCountry "WLS"]
[BlackTeamCountry "SWE"]
[TimeControl "40/5400+30:1800+30"]

1. c4 {[%emt 0:00:00]} c5 {[%emt 0:00:00]} 2. Nc3 {[%emt 0:00:00]} Nc6 {[%emt 0:00:00]} 3. Nf3 {[%emt 0:00:00]} Nf6 {[%emt 0:00:03]} 4. g3 {[%emt 0:00:16]} d5 {[%emt 0:01:29]} 5. cxd5 {[%emt 0:00:35]} Nxd5 {[%emt 0:00:02]} 6. Bg2 {[%emt 0:00:13]} g6 {[%emt 0:00:58]} 7. O-O {[%emt 0:00:33]} Bg7 {[%emt 0:00:11]} 8. Qb3 {[%emt 0:05:23]} Nb6 {[%emt 0:06:50]} 9. d3 {[%emt 0:01:43]} Nd4 {[%emt 0:11:20]} 10. Nxd4 {[%emt 0:02:19]} cxd4 {[%emt 0:00:38]} 11. Nd5 {[%emt 0:00:32]} Nxd5 {[%emt 0:03:42]} 12. Bxd5 {[%emt 0:00:12]} O-O {[%emt 0:00:08]} 13. Bf4 {[%emt 0:02:23]} e6 {[%emt 0:01:47]} 14. Bxb7 {[%emt 0:03:23]} Bxb7 {[%emt 0:00:04]} 15. Qxb7 {[%emt 0:00:09]} e5 {[%emt 0:00:46]} 16. Bc1 {[%emt 0:00:20]} Qa5 {[%emt 0:02:44]} 17. b3 {[%emt 0:02:19]} Rac8 {[%emt 0:07:56]} 18. b4 {[%emt 0:04:11]} Qa4 {[%emt 0:01:43]} 19. a3 {[%emt 0:00:27]} Rc2 {[%emt 0:02:12]} 20. Qe4 {[%emt 0:01:02]} Rfc8 {[%emt 0:01:23]} 21. f4 {[%emt 0:00:59]} exf4 {[%emt 0:09:25]} 22. Qxf4 {[%emt 0:00:29]} Qd7 {[%emt 0:02:34]} 23. Bd2 {[%emt 0:04:05]} Re8 {[%emt 0:05:45]} 24. Rf2 {[%emt 0:00:57]} Be5 {[%emt 0:01:53]} 25. Qg5 {[%emt 0:01:17]} Bg7 {[%emt 0:04:13]} 26. Rd1 {[%emt 0:00:48]} Ra2 {[%emt 0:01:33]} 27. Qa5 {[%emt 0:02:44]} Re5 {[%emt 0:01:59]} 28. Qa6 {[%emt 0:00:45]} Re6 {[%emt 0:00:18]} 29. Qa5 {[%emt 0:01:55]} Re5 {[%emt 0:00:08]} 30. Qa6 {[%emt 0:00:42]} Re6 31. Qc4 {[%emt 0:00:02]} Rxa3 {[%emt 0:00:02]} 1/2-1/2

[Event "World Senior chT-65 2019"]
[Site "Rhodes"]
[Date "2019.04.21"]
[Round "6.44"]
[White "Gunnarsson, Lennart"]
[Black "Harle, Bill"]
[Result "1-0"]
[ECO "D53"]
[WhiteElo "1752"]
[BlackElo "1734"]
[Annotator "NA"]
[PlyCount "49"]
[EventDate "2019.04.16"]
[EventType "team-tourn"]
[EventCountry "GRE"]
[SourceTitle "playchess.com"]
[Source "ChessBase"]
[SourceQuality "1"]
[WhiteTeam "Sweden"]
[BlackTeam "Wales"]
[WhiteTeamCountry "SWE"]
[BlackTeamCountry "WLS"]
[TimeControl "40/5400+30:1800+30"]

1. d4 {[%emt 0:00:00]} d5 {[%emt 0:00:00]} 2. c4 {[%emt 0:00:00]} e6 {[%emt 0:00:16]} 3. Nc3 {[%emt 0:00:06]} Nf6 {[%emt 0:00:26]} 4. Bg5 {[%emt 0:00:19]} Be7 {[%emt 0:00:14]} 5. e3 {[%emt 0:00:14]} b6 {[%emt 0:01:52]} 6. cxd5 {[%emt 0:02:01]} Nxd5 {[%emt 0:00:21]} 7. Bxe7 {[%emt 0:00:17]} Nxe7 {[%emt 0:00:20]} 8. Nf3 {[%emt 0:04:10]} Nd7 {[%emt 0:03:29]} 9. Bd3 {[%emt 0:09:28]} Nf6 {[%emt 0:03:40]} 10. O-O {[%emt 0:01:17]} Bb7 {[%emt 0:02:04]} 11. Rc1 {[%emt 0:03:04]} a6 {[%emt 0:01:58]} 12. Qe2 {[%emt 0:04:55]} O-O {[%emt 0:03:35]} 13. Rfd1 {[%emt 0:02:14]} Ned5 {[%emt 0:06:53]} 14. Ne5 {[%emt 0:07:19]} Qe7 {[%emt 0:09:09]} 15. a3 {[%emt 0:12:35]} Rfc8 {[%emt 0:05:27]} 16. Ne4 {[%emt 0:18:00]} c5 {[%emt 0:09:15]} 17. dxc5 {[%emt 0:00:00]} bxc5 {[%emt 0:00:29]} 18. Nc4 {[%emt 0:00:00]} Rc7 {[%emt 0:07:13]} 19. Rd2 {[%emt 0:00:59]} Ne8 {[%emt 0:06:15]} 20. Rdc2 {[%emt 0:07:27]} a5 {[%emt 0:06:55]} 21. Ncd2 {[%emt 0:02:09]} Rac8 {[%emt 0:06:29]} 22. Ba6 {[%emt 0:04:27]} Bxa6 {[%emt 0:04:45]} 23. Qxa6 {[%emt 0:00:01]} f5 {[%emt 0:00:39]} 24. Nc3 {[%emt 0:02:36]} Ra7 {[%emt 0:01:17]} 25. Qxc8 {[%emt 0:00:24]} 1-0

[Event "World Senior chT-65 2019"]
[Site "Rhodes"]
[Date "2019.04.22"]
[Round "7.2"]
[White "Balashov, Yuri S"]
[Black "Karasev, Vladimir I"]
[Result "1-0"]
[ECO "A55"]
[WhiteElo "2470"]
[BlackElo "2281"]
[Annotator "ChessBase"]
[PlyCount "75"]
[EventDate "2019.04.16"]
[EventType "team-tourn"]
[EventCountry "GRE"]
[SourceTitle "playchess.com"]
[Source "ChessBase"]
[SourceQuality "1"]
[WhiteTeam "Russia"]
[BlackTeam "Russia"]
[WhiteTeamCountry "RUS"]
[BlackTeamCountry "RUS"]
[TimeControl "40/5400+30:1800+30"]

1. d4 {[%emt 0:00:00]} Nf6 {[%emt 0:00:25]} 2. c4 {[%emt 0:00:00]} d6 {[%emt 0:00:06]} 3. Nf3 {[%emt 0:00:12]} Nbd7 {[%emt 0:01:09]} 4. Nc3 {[%emt 0:00:11]} e5 {[%emt 0:00:07]} 5. e4 {[%emt 0:00:08]} c6 {[%emt 0:00:46]} 6. Be2 {[%emt 0:00:21]} exd4 {[%emt 0:02:52]} 7. Nxd4 {[%emt 0:00:09]} Nc5 {[%emt 0:00:14]} 8. f3 {[%emt 0:01:26]} g6 {[%emt 0:01:05]} 9. O-O {[%emt 0:11:10]} Bg7 {[%emt 0:00:05]} 10. Kh1 {[%emt 0:00:12]} O-O {[%emt 0:00:12]} 11. Nb3 {[%emt 0:01:51]} Ne6 {[%emt 0:20:48]} 12. Be3 {[%emt 0:04:56]} Qe7 {[%emt 0:01:44]} 13. Qd2 {[%emt 0:02:09]} Rd8 {[%emt 0:08:29]} 14. Rad1 {[%emt 0:00:24]} b6 {[%emt 0:06:42]} 15. Nd4 {[%emt 0:13:06]} Bb7 {[%emt 0:02:51]} 16. Rfe1 {[%emt 0:03:36]} Nxd4 {[%emt 0:05:12]} 17. Bxd4 {[%emt 0:00:05]} Ne8 {[%emt 0:03:51]} 18. f4 {[%emt 0:10:52]} Bxd4 {[%emt 0:00:52]} 19. Qxd4 {[%emt 0:00:06]} Qf6 {[%emt 0:01:38]} 20. Qe3 {[%emt 0:04:08]} Rd7 {[%emt 0:05:08]} 21. Bg4 {[%emt 0:05:33]} Re7 {[%emt 0:00:34]} 22. Qg3 {[%emt 0:01:38]} Qg7 {[%emt 0:04:05]} 23. Re2 {[%emt 0:05:02]} g5 {[%emt 0:03:04]} 24. Bf5 {[%emt 0:02:59]} Ba6 {[%emt 0:05:51]} 25. fxg5 {[%emt 0:01:57]} Bxc4 {[%emt 0:00:18]} 26. Re3 {[%emt 0:00:13]} Be6 {[%emt 0:04:17]} 27. Rf3 {[%emt 0:03:54]} Bxf5 {[%emt 0:03:10]} 28. exf5 {[%emt 0:00:17]} Re5 {[%emt 0:02:13]} 29. Qf4 {[%emt 0:03:39]} Kh8 {[%emt 0:03:03]} 30. Ne4 {[%emt 0:02:10]} Nc7 {[%emt 0:05:09]} 31. Nxd6 {[%emt 0:01:31]} Rf8 {[%emt 0:03:02]} 32. Ne4 {[%emt 0:05:18]} Nd5 {[%emt 0:00:29]} 33. f6 {[%emt 0:00:44]} Nxf4 {[%emt 0:00:51]} 34. fxg7+ {[%emt 0:00:07]} Kxg7 {[%emt 0:00:06]} 35. Rxf4 {[%emt 0:00:06]} Rfe8 {[%emt 0:00:13]} 36. Nd6 {[%emt 0:00:43]} Rd8 {[%emt 0:01:34]} 37. Rxf7+ {[%emt 0:01:17]} Kg6 {[%emt 0:00:17]} 38. Rff1 {[%emt 0:00:38]} 1-0

[Event "World Senior chT-65 2019"]
[Site "Rhodes"]
[Date "2019.04.22"]
[Round "7.3"]
[White "Shushpanov, Vladimir"]
[Black "Rashkovsky, Nukhim N"]
[Result "1/2-1/2"]
[ECO "E11"]
[WhiteElo "2180"]
[BlackElo "2488"]
[Annotator "ChessBase"]
[PlyCount "49"]
[EventDate "2019.04.16"]
[EventType "team-tourn"]
[EventCountry "GRE"]
[SourceTitle "playchess.com"]
[Source "ChessBase"]
[SourceQuality "1"]
[WhiteTeam "Russia"]
[BlackTeam "Russia"]
[WhiteTeamCountry "RUS"]
[BlackTeamCountry "RUS"]
[TimeControl "40/5400+30:1800+30"]

1. d4 {[%emt 0:00:00]} Nf6 {[%emt 0:00:00]} 2. c4 {[%emt 0:00:00]} e6 {[%emt 0:00:00]} 3. Nf3 {[%emt 0:00:00]} Bb4+ {[%emt 0:00:19]} 4. Nbd2 {[%emt 0:00:04]} d6 {[%emt 0:03:10]} 5. a3 {[%emt 0:02:30]} Bxd2+ {[%emt 0:00:05]} 6. Bxd2 {[%emt 0:00:09]} Qe7 {[%emt 0:00:22]} 7. Bg5 {[%emt 0:04:25]} Nbd7 {[%emt 0:04:39]} 8. e3 {[%emt 0:00:00]} h6 {[%emt 0:00:21]} 9. Bh4 {[%emt 0:00:05]} b6 {[%emt 0:01:12]} 10. Be2 {[%emt 0:04:05]} Bb7 {[%emt 0:00:16]} 11. b4 {[%emt 0:03:31]} g5 {[%emt 0:02:01]} 12. Bg3 {[%emt 0:00:12]} Ne4 {[%emt 0:00:01]} 13. c5 {[%emt 0:10:00]} Bd5 {[%emt 0:17:49]} 14. Qc2 {[%emt 0:07:02]} Ndf6 {[%emt 0:01:05]} 15. Rc1 {[%emt 0:04:47]} O-O {[%emt 0:20:17]} 16. O-O {[%emt 0:16:10]} a5 {[%emt 0:00:22]} 17. cxd6 {[%emt 0:08:44]} cxd6 {[%emt 0:00:02]} 18. b5 {[%emt 0:00:26]} Qb7 {[%emt 0:07:23]} 19. Rfd1 {[%emt 0:08:04]} Rac8 {[%emt 0:00:42]} 20. Qb2 {[%emt 0:00:15]} Rxc1 {[%emt 0:04:45]} 21. Rxc1 {[%emt 0:00:03]} Rc8 {[%emt 0:00:09]} 22. Ne1 {[%emt 0:00:53]} Rxc1 {[%emt 0:06:41]} 23. Qxc1 {[%emt 0:00:20]} Nxg3 {[%emt 0:00:01]} 24. hxg3 {[%emt 0:00:03]} e5 {[%emt 0:00:56]} 25. Qd1 {[%emt 0:00:05]} 1/2-1/2

[Event "World Senior chT-65 2019"]
[Site "Rhodes"]
[Date "2019.04.22"]
[Round "7.4"]
[White "Zhelnin, Vladimir V"]
[Black "Blechzin, Igor"]
[Result "1/2-1/2"]
[ECO "B70"]
[WhiteElo "2429"]
[BlackElo "2210"]
[Annotator "NA"]
[PlyCount "51"]
[EventDate "2019.04.16"]
[EventType "team-tourn"]
[EventCountry "GRE"]
[SourceTitle "playchess.com"]
[Source "ChessBase"]
[SourceQuality "1"]
[WhiteTeam "Russia"]
[BlackTeam "Russia"]
[WhiteTeamCountry "RUS"]
[BlackTeamCountry "RUS"]
[TimeControl "40/5400+30:1800+30"]

1. e4 {[%emt 0:00:00]} c5 {[%emt 0:00:00]} 2. Nf3 {[%emt 0:00:00]} d6 {[%emt 0:00:30]} 3. d4 {[%emt 0:00:00]} cxd4 {[%emt 0:00:03]} 4. Nxd4 {[%emt 0:00:00]} Nf6 {[%emt 0:00:02]} 5. Nc3 {[%emt 0:00:12]} g6 {[%emt 0:00:04]} 6. Be2 {[%emt 0:00:17]} Bg7 {[%emt 0:00:08]} 7. O-O {[%emt 0:00:09]} Nc6 {[%emt 0:00:09]} 8. Nb3 {[%emt 0:00:20]} O-O {[%emt 0:03:34]} 9. Re1 {[%emt 0:00:09]} Be6 {[%emt 0:00:33]} 10. Bg5 {[%emt 0:03:10]} Rc8 {[%emt 0:07:22]} 11. Bf1 {[%emt 0:02:12]} Ne5 {[%emt 0:08:39]} 12. Nd5 {[%emt 0:22:11]} Bxd5 {[%emt 0:05:39]} 13. exd5 {[%emt 0:01:01]} Nc4 {[%emt 0:00:24]} 14. Bxc4 {[%emt 0:05:20]} Rxc4 {[%emt 0:00:08]} 15. Qd3 $11 {[%emt 0:02:55]} Rc8 {[%emt 0:16:58]} 16. c3 {[%emt 0:00:44]} h6 {[%emt 0:01:36]} 17. Bd2 {[%emt 0:02:14]} Qc7 {[%emt 0:04:13]} 18. Re2 {[%emt 0:06:23]} Rfe8 {[%emt 0:04:03]} 19. Rae1 {[%emt 0:00:18]} Kf8 {[%emt 0:06:40]} 20. Be3 {[%emt 0:07:21]} Qc4 {[%emt 0:07:50]} 21. Qxc4 {[%emt 0:00:22]} Rxc4 {[%emt 0:00:01]} 22. Rd1 {[%emt 0:00:26]} b6 {[%emt 0:02:45]} 23. Bd4 {[%emt 0:04:24]} Nd7 {[%emt 0:05:28]} 24. Bxg7+ Kxg7 {[%emt 0:00:02]} 25. Nd4 {[%emt 0:05:59]} Nf6 {[%emt 0:00:26]} 26. Nc2 {[%emt 0:00:29]} 1/2-1/2